[Event "74th RUS-ch Superfinal 2021"]
[Site "Ufa"]
[Date "2021.10.20"]
[Round "11.4"]
[White "Predke, Alexandr"]
[Black "Motylev, Alexander"]
[Result "1/2-1/2"]
[ECO "D11"]
[WhiteElo "2666"]
[BlackElo "2624"]
[Annotator "ChessBase"]
[PlyCount "80"]
[EventDate "2021.10.09"]
[EventType "tourn"]
[EventCountry "RUS"]
[SourceTitle "playchess.com"]
[Source "ChessBase"]
[SourceQuality "1"]
[TimeControl "40/5400+30:1800+30"]

1. d4 {[%emt 0:00:03]} d5 {[%emt 0:00:06]} 2. c4 {[%emt 0:01:47]} c6 {[%emt 0:
00:17]} 3. Nf3 {[%emt 0:00:05]} Nf6 {[%emt 0:00:04]} 4. Qc2 {[%emt 0:00:05]} g6
{[%emt 0:00:12]} 5. e3 {[%emt 0:00:06]} Bg7 {[%emt 0:00:09]} 6. Be2 {[%emt 0:
00:06]} O-O {[%emt 0:05:02]} 7. O-O {[%emt 0:00:16]} Bf5 {[%emt 0:00:21]} 8.
Qb3 {[%emt 0:00:12]} Qb6 {[%emt 0:00:22]} 9. Nc3 {[%emt 0:00:31]} Nbd7 {
[%emt 0:00:44]} 10. h3 {[%emt 0:00:47]} h6 {[%emt 0:02:41]} 11. cxd5 {[%emt 0:
33:13]} Qxb3 {[%emt 0:01:11]} 12. axb3 {[%emt 0:00:03]} Nxd5 {[%emt 0:00:38]}
13. Bd2 {[%emt 0:02:12]} N5b6 {[%emt 0:18:38]} 14. b4 {[%emt 0:04:44]} a6 {
[%emt 0:02:07]} 15. Rfc1 {[%emt 0:02:59]} Nf6 {[%emt 0:05:09]} 16. Be1 {
[%emt 0:09:58]} Rad8 {[%emt 0:07:31]} 17. Nd2 {[%emt 0:03:19]} Rfe8 {[%emt 0:
04:04]} 18. Nb3 {[%emt 0:06:36]} e5 {[%emt 0:01:08]} 19. dxe5 {[%emt 0:01:03]}
Rxe5 {[%emt 0:00:29]} 20. Na5 {[%emt 0:19:49]} Bc8 {[%emt 0:01:31]} 21. Bxa6 {
[%emt 0:00:28]} bxa6 {[%emt 0:01:36]} 22. Nxc6 {[%emt 0:00:11]} Ree8 {[%emt 0:
00:23]} 23. Nxd8 {[%emt 0:00:23]} Rxd8 {[%emt 0:05:44]} 24. b5 {[%emt 0:00:04]}
axb5 {[%emt 0:02:25]} 25. Nxb5 {[%emt 0:04:16]} Nfd5 {[%emt 0:12:24]} 26. Rd1 {
[%emt 0:03:30]} Bd7 {[%emt 0:03:47]} 27. Ba5 {[%emt 0:01:10]} Rb8 {[%emt 0:01:
48]} 28. Nc3 {[%emt 0:03:34]} Be6 {[%emt 0:04:42]} 29. Rac1 {[%emt 0:01:15]}
Kh7 30. Nxd5 {[%emt 0:00:09]} Nxd5 {[%emt 0:00:46]} 31. Rc5 {[%emt 0:01:33]}
Nf6 {[%emt 0:02:49]} 32. b4 {[%emt 0:00:09]} Bf8 33. Rcc1 {[%emt 0:00:22]} Nd5
{[%emt 0:01:39]} 34. Rd4 Nxb4 {[%emt 0:01:19]} 35. Rb1 {[%emt 0:01:17]} Nc6 {
[%emt 0:00:31]} 36. Rxb8 {[%emt 0:00:04]} Nxb8 {[%emt 0:00:03]} 37. Rd8 {
[%emt 0:00:00]} Nd7 {[%emt 0:01:16]} 38. Bc3 {[%emt 0:00:06]} Bg7 {[%emt 0:00:
00]} 39. Bxg7 Kxg7 40. h4 {[%emt 0:00:00]} h5 {[%emt 0:00:00]} 1/2-1/2

[Event "74th RUS-ch Superfinal 2021"]
[Site "Ufa"]
[Date "2021.10.20"]
[Round "11.5"]
[White "Fedoseev, Vladimir"]
[Black "Ponkratov, Pavel"]
[Result "0-1"]
[ECO "A50"]
[WhiteElo "2704"]
[BlackElo "2659"]
[Annotator "RC"]
[PlyCount "166"]
[EventDate "2021.10.09"]
[EventType "tourn"]
[EventCountry "RUS"]
[SourceTitle "playchess.com"]
[Source "ChessBase"]
[SourceQuality "1"]
[TimeControl "40/5400+30:1800+30"]

1. d4 {[%emt 0:00:07]} Nf6 {[%emt 0:00:05]} 2. c4 {[%emt 0:00:08]} g6 {[%emt 0:
00:17]} 3. Bg5 {[%emt 0:01:38]} Bg7 {[%emt 0:00:06]} 4. Nc3 {[%emt 0:00:07]} h6
{[%emt 0:01:07]} 5. Bd2 {[%emt 0:00:29]} d6 {[%emt 0:01:36]} 6. g3 {[%emt 0:04:
10]} c5 {[%emt 0:01:45]} 7. d5 {[%emt 0:00:35]} e6 {[%emt 0:00:19]} 8. Bg2 {
[%emt 0:00:44]} exd5 {[%emt 0:00:07]} 9. cxd5 {[%emt 0:00:13]} O-O {[%emt 0:00:
10]} 10. Qc1 {[%emt 0:01:00]} Kh7 {[%emt 0:00:07]} 11. Nf3 {[%emt 0:00:57]} Re8
{[%emt 0:02:19]} 12. O-O {[%emt 0:00:12]} Na6 {[%emt 0:02:21]} 13. Bf4 {
[%emt 0:13:09]} Bf5 {[%emt 0:10:05]} 14. Nd2 {[%emt 0:03:03]} g5 {[%emt 0:16:
59]} 15. e4 {[%emt 0:00:12]} Bg6 {[%emt 0:00:04]} 16. Be3 {[%emt 0:00:28]} Ng4
{[%emt 0:11:11]} 17. Nc4 {[%emt 0:01:18]} Nxe3 {[%emt 0:01:47]} 18. Nxe3 {
[%emt 0:01:11]} c4 {[%emt 0:00:05]} 19. f4 {[%emt 0:01:47]} gxf4 {[%emt 0:00:
27]} 20. gxf4 {[%emt 0:00:13]} Nc5 {[%emt 0:05:05]} 21. f5 {[%emt 0:00:15]} Bh5
{[%emt 0:00:04]} 22. Nxc4 {[%emt 0:06:40]} Qf6 {[%emt 0:09:28]} 23. Kh1 {
[%emt 0:06:49]} Rac8 {[%emt 0:04:05]} 24. Qe3 {[%emt 0:08:51]} b5 {[%emt 0:04:
49]} 25. Na5 {[%emt 0:10:25]} b4 {[%emt 0:01:35]} 26. Nb5 {[%emt 0:00:17]} Qh4
{[%emt 0:16:51]} 27. Rf4 {[%emt 0:07:23]} Qg5 {[%emt 0:00:06]} 28. h4 {[%emt 0:
00:37]} Qf6 {[%emt 0:05:07]} 29. Nc6 {[%emt 0:00:47]} a6 {[%emt 0:03:26]} 30.
Nbd4 {[%emt 0:00:19]} Rxc6 {[%emt 0:01:10]} 31. Nxc6 {[%emt 0:00:33]} Qxb2 {
[%emt 0:00:05]} 32. Re1 {[%emt 0:06:31]} Qc3 {[%emt 0:00:25]} 33. f6 {[%emt 0:
04:41]} Nd3 {[%emt 0:00:17]} 34. Ref1 {[%emt 0:00:15]} Nxf4 {[%emt 0:01:07]}
35. Qxf4 {[%emt 0:00:05]} Bf8 {[%emt 0:00:14]} 36. Kh2 {[%emt 0:01:56]} Bg6 {
[%emt 0:00:13]} 37. Qg4 {[%emt 0:10:12]} h5 {[%emt 0:00:53]} 38. Qd7 {[%emt 0:
00:06]} Ra8 {[%emt 0:00:10]} 39. Qb7 {[%emt 0:01:36]} Re8 {[%emt 0:00:14]} 40.
Qd7 {[%emt 0:00:00]} Ra8 {[%emt 0:00:00]} 41. e5 {[%emt 0:06:36]} dxe5 {
[%emt 0:00:57]} 42. Ne7 {[%emt 0:00:05]} Bd3 {[%emt 0:06:24]} 43. Rf5 {[%emt 0:
06:11]} Bh6 {[%emt 0:08:07]} 44. Rxh5 {[%emt 0:00:08]} Qd2 {[%emt 0:00:38]} 45.
Nf5 {[%emt 0:00:55]} Qf4+ {[%emt 0:02:09]} 46. Kh3 {[%emt 0:00:07]} Ra7 {
[%emt 0:00:04]} 47. Qc8 {[%emt 0:05:38]} Rc7 {[%emt 0:02:20]} 48. Rxh6+ {
[%emt 0:03:25]} Qxh6 {[%emt 0:00:06]} 49. Qxc7 {[%emt 0:00:06]} Bxf5+ {[%emt 0:
00:05]} 50. Kh2 {[%emt 0:00:04]} Qxh4+ {[%emt 0:00:05]} 51. Kg1 {[%emt 0:00:05]
} Qd4+ {[%emt 0:00:25]} 52. Kh2 {[%emt 0:00:05]} Kg6 {[%emt 0:00:13]} 53. d6 {
[%emt 0:01:04]} e4 {[%emt 0:02:27]} 54. Qd8 {[%emt 0:02:43]} Qxf6 {[%emt 0:00:
27]} 55. Qg8+ {[%emt 0:01:24]} Qg7 {[%emt 0:00:46]} 56. Qb8 {[%emt 0:00:03]}
Qe5+ {[%emt 0:00:19]} 57. Kg1 {[%emt 0:00:08]} Qd4+ {[%emt 0:00:59]} 58. Kh2 {
[%emt 0:00:18]} Kg7 {[%emt 0:00:15]} 59. Qd8 {[%emt 0:01:46]} Qf6 {[%emt 0:00:
09]} 60. Qb6 {[%emt 0:00:05]} Qe5+ {[%emt 0:00:05]} 61. Kg1 {[%emt 0:00:10]} a5
{[%emt 0:00:26]} 62. Qd8 {[%emt 0:02:15]} Qd4+ {[%emt 0:00:08]} 63. Kh2 {
[%emt 0:00:01]} e3 {[%emt 0:00:30]} 64. Qg5+ {[%emt 0:02:15]} Bg6 {[%emt 0:00:
05]} 65. d7 {[%emt 0:00:44]} Qxd7 {[%emt 0:00:14]} 66. Qxe3 {[%emt 0:00:04]}
Qd6+ {[%emt 0:00:11]} 67. Kg1 {[%emt 0:00:05]} a4 {[%emt 0:00:08]} 68. Bf1 {
[%emt 0:00:04]} Qf6 {[%emt 0:02:39]} 69. Bc4 {[%emt 0:01:07]} Qc3 {[%emt 0:00:
09]} 70. Qf4 {[%emt 0:00:05]} b3 {[%emt 0:01:43]} 71. axb3 {[%emt 0:00:12]}
axb3 {[%emt 0:00:06]} 72. Bxb3 {[%emt 0:00:04]} Qxb3 {[%emt 0:00:04]} 73. Qd4+
{[%emt 0:00:07]} f6 {[%emt 0:00:04]} 74. Qd7+ {[%emt 0:00:04]} Qf7 {[%emt 0:00:
04]} 75. Qd6 {[%emt 0:00:05]} Be4 {[%emt 0:00:12]} 76. Kf2 {[%emt 0:00:05]} Qd5
{[%emt 0:00:31]} 77. Qe7+ {[%emt 0:00:08]} Kg6 {[%emt 0:00:05]} 78. Qb4 {
[%emt 0:00:15]} Kf5 {[%emt 0:00:11]} 79. Kg3 {[%emt 0:00:07]} Qe5+ {[%emt 0:00:
06]} 80. Kh3 {[%emt 0:00:05]} Kg6 {[%emt 0:00:35]} 81. Qb3 {[%emt 0:01:59]}
Qh5+ {[%emt 0:00:25]} 82. Kg3 {[%emt 0:00:04]} Qg5+ {[%emt 0:00:05]} 83. Kf2 {
[%emt 0:00:25]} Qd2+ {[%emt 0:00:09]} 0-1